fUST/lending_fUST_20260322
["ID","MTS","AMOUNT","RATE_DAILY","PERIOD"]
[408689386,1774123839448,-500.0,0.00014998,2]
[408689387,1774123839457,-500.0,0.00014998,2]
[408689388,1774123839467,-500.0,0.00014998,2]
[408689389,1774123839476,-500.0,0.00014998,2]
[408689390,1774123839486,-500.0,0.00014998,2]
[408689391,1774123839495,-500.0,0.00014998,2]
[408689392,1774123839504,-500.0,0.00014998,2]
[408689393,1774123839514,-500.0,0.00014998,2]
[408689394,1774123839525,-500.0,0.00014998,2]
[408689395,1774123839534,-500.0,0.00014998,2]
[408689396,1774123839543,-500.0,0.00014998,2]
[408689397,1774123839553,-500.0,0.00014998,2]
[408689398,1774123839562,-500.0,0.00014998,2]
[408689399,1774123839572,-169.301551,0.00014999,2]
[408689400,1774123839581,-169.301551,0.00014999,2]
[408689401,1774123839590,-169.301551,0.00014999,2]
[408689402,1774123839600,-169.301551,0.00014999,2]
[408689403,1774123839609,-151.0,0.00014999,2]
[408689404,1774123839622,-151.0,0.00014999,2]
[408689405,1774123839631,-255.841421,0.00014999,2]
[408689406,1774123839640,-255.841421,0.00014999,2]
[408689407,1774123839650,-255.841421,0.00014999,2]
[408689408,1774123839659,-255.841421,0.00014999,2]
[408689409,1774123839668,-151.0,0.00014999,2]
[408689411,1774123839678,-151.0,0.00014999,2]
[408689412,1774123839687,-267.818512,0.00014999,2]
[408689413,1774123839696,-1560.0,0.00015,2]
[408689414,1774123839705,-405.0,0.00015,2]
[408689416,1774123839717,-10557.0,0.00015,2]
[408689418,1774123839726,-500.0,0.00015,2]
[408689420,1774123839735,-500.0,0.00015,2]
[408689421,1774123839745,-500.0,0.00015,2]
[408689422,1774123839755,-500.0,0.00015,2]
[408689424,1774123839764,-501.28698986,0.00015,2]
[408689426,1774123839773,-500.0,0.00015,2]
[408689428,1774123839783,-500.0,0.00015,2]
[408689430,1774123839792,-500.0,0.00015,2]
[408689432,1774123839801,-8380.49440844,0.00015112,12]
[408689434,1774123839810,-500.0,0.000152,2]
[408689436,1774123839819,-291.14991491,0.00015534,2]
[408689438,1774123839828,-500.0,0.00015548,2]
[408689440,1774123839837,-647.19442264,0.00015548,2]
[408689442,1774123839846,-545.13898227,0.00015548,2]
[408689444,1774123839855,-1000.0,0.00015548,2]
[408689446,1774123839864,-1000.0,0.00015548,2]
[408689448,1774123839874,-1000.0,0.00015548,2]
[408689450,1774123839882,-574.73987736,0.00015548,2]
[408689452,1774123839893,-5000.0,0.0001564,2]
[408689454,1774123839901,-1000.0,0.00016005,2]
[408689456,1774123839910,-244.0,0.00016005,2]
[408689458,1774123839919,-1500.0,0.00016096,2]
[408689460,1774123839928,-1500.0,0.00016096,2]
[408689462,1774123839938,-1500.0,0.00016096,2]
[408689464,1774123839947,-2000.0,0.00016644,2]
[408689466,1774123839956,-2000.0,0.00016644,2]
[408689468,1774123839965,-2000.0,0.00016644,2]
[408689470,1774123839974,-2500.0,0.00017192,2]
[408689472,1774123839983,-500.0,0.00017192,2]
[408689474,1774123839992,-500.0,0.00017192,2]
[408689476,1774123840001,-1000.0,0.00017605,2]
[408689478,1774123840011,-492.0,0.00017605,2]
[408689480,1774123840020,-500.0,0.0001774,2]
[408689482,1774123840029,-291.14991491,0.00017896,2]
[408689484,1774123840038,-2560.84402046,0.00018768,2]
[408689486,1774123840047,-1000.0,0.00019366,2]
[408689488,1774123840057,-791.0,0.00019366,2]
[408689490,1774123840066,-169.301551,0.00019366,2]
[408689492,1774123840075,-169.301551,0.00019366,2]
[408689494,1774123840084,-169.301551,0.00019366,2]
[408689496,1774123840093,-169.301551,0.00019366,2]
[408689498,1774123840102,-151.0,0.00019366,2]
[408689500,1774123840111,-151.0,0.00019366,2]
[408689502,1774123840120,-255.841421,0.00019366,2]
[408689504,1774123840129,-255.841421,0.00019366,2]
[408689506,1774123840138,-255.841421,0.00019366,2]
[408689508,1774123840146,-255.841421,0.00019366,2]
[408689510,1774123840155,-151.0,0.00019366,2]
[408689512,1774123840164,-151.0,0.00019366,2]
[408689514,1774123840174,-11135.39402184,0.00020122,46]
[408689515,1774123840183,-291.14991491,0.00020259,2]
[408689518,1774123840192,-438.0,0.00020954,2]
[408689519,1774123840203,-183.78,0.00020954,2]
[408689521,1774123840212,-641.0,0.00021141,2]
[408689523,1774123840221,-2189.0,0.00021141,2]
[408689526,1774123840230,-1397.0,0.00021141,2]
[408689528,1774123840239,-1000.0,0.00021302,10]
[408689529,1774123840248,-1000.0,0.00021302,10]
[408689531,1774123840257,-291.14991491,0.00022621,2]
[408689533,1774123840267,-270.83333333,0.00023,2]
[408689535,1774123840276,-6831.0,0.00023412,10]
[408689537,1774123840285,-5692.5,0.00023412,10]
[408689539,1774123840294,-1000.0,0.00023432,10]
[408689542,1774123840304,-1000.0,0.00023432,10]
[408689544,1774123840313,-579.0,0.00023432,10]
[408689546,1774123840325,-162.380719,0.00023769,2]
[408689548,1774123840334,-151.0,0.00023769,2]
[408689550,1774123840343,-445.202766,0.00023769,2]
[408689552,1774123840353,-537.6845,0.00023769,2]
[408689554,1774123840362,-162.380719,0.00023769,2]
[408689556,1774123840371,-2150.738,0.00023769,2]
[408689558,1774123840380,-156.587,0.00023769,2]
[408689560,1774123840389,-537.6845,0.00023769,2]
[408689562,1774123840398,-557.5788265,0.00023824,2]
[408689564,1774123840407,-578.20924308,0.00023879,2]
[408689566,1774123840417,-599.60298507,0.00023934,2]
[408689568,1774123840426,-183.0,0.00023954,2]
[408689570,1774123840435,-621.78829552,0.00023989,2]
[408689572,1774123840443,-644.79446246,0.00024044,2]
[408689574,1774123840453,-668.65185757,0.00024099,2]
[408689576,1774123840462,-500.0,0.0002414,5]
[408689578,1774123840471,-693.3919763,0.00024154,2]
[408689580,1774123840481,-719.04747942,0.00024209,2]
[408689582,1774123840491,-745.65223616,0.00024264,2]
[408689584,1774123840501,-773.2413689,0.00024319,2]
[408689586,1774123840511,-801.85129955,0.00024374,2]
[408689588,1774123840520,-831.51979763,0.00024429,2]
[408689590,1774123840530,-500.0,0.00024444,120]
[408689592,1774123840540,-500.0,0.00024444,120]
[408689595,1774123840551,-500.0,0.00024444,120]
[408689597,1774123840560,-500.0,0.00024444,120]
[408689598,1774123840571,-500.0,0.00024444,120]
[408689601,1774123840580,-500.0,0.00024444,120]
[408689603,1774123840590,-500.0,0.00024444,120]
[408689605,1774123840599,-500.0,0.00024444,120]
[408689606,1774123840608,-500.0,0.00024444,120]
[408689608,1774123840621,-500.0,0.00024444,120]
[408689610,1774123840631,-500.0,0.00024444,120]
[408689611,1774123840640,-500.0,0.00024444,120]
[408689613,1774123840649,-500.0,0.00024444,120]
[408689615,1774123840659,-500.0,0.00024444,120]
[408689617,1774123840668,-500.0,0.00024444,120]
[408689619,1774123840678,-500.0,0.00024444,120]
[408689621,1774123840687,-500.0,0.00024444,120]
[408689623,1774123840696,-500.0,0.00024444,120]
[408689625,1774123840705,-500.0,0.00024444,120]
[408689627,1774123840714,-500.0,0.00024444,120]
[408689629,1774123840723,-500.0,0.00024444,120]
[408689631,1774123840732,-500.0,0.00024444,120]
[408689633,1774123840742,-500.0,0.00024444,120]
[408689635,1774123840751,-500.0,0.00024444,120]
[408689637,1774123840761,-500.0,0.00024444,120]
[408689639,1774123840770,-500.0,0.00024444,120]
[408689641,1774123840779,-500.0,0.00024444,120]
[408689643,1774123840788,-500.0,0.00024444,120]
[408689645,1774123840797,-500.0,0.00024444,120]
[408689647,1774123840806,-500.0,0.00024444,120]
[408689649,1774123840816,-500.0,0.00024444,120]
[408689651,1774123840825,-500.0,0.00024444,120]
[408689653,1774123840834,-500.0,0.00024444,120]
[408689655,1774123840843,-500.0,0.00024444,120]
[408689657,1774123840852,-500.0,0.00024444,120]
[408689659,1774123840862,-500.0,0.00024444,120]
[408689661,1774123840871,-500.0,0.00024444,120]
[408689663,1774123840880,-500.0,0.00024444,120]
[408689665,1774123840889,-500.0,0.00024444,120]
[408689667,1774123840898,-500.0,0.00024444,120]
[408689669,1774123840907,-500.0,0.00024444,120]
[408689671,1774123840916,-500.0,0.00024444,120]
[408689673,1774123840925,-500.0,0.00024444,120]
[408689675,1774123840934,-500.0,0.00024444,120]
[408689677,1774123840942,-500.0,0.00024444,120]
[408689679,1774123840952,-500.0,0.00024444,120]
[408689680,1774123840961,-500.0,0.00024444,120]
[408689683,1774123840971,-500.0,0.00024444,120]
[408689685,1774123840980,-500.0,0.00024444,120]
[408689687,1774123840989,-500.0,0.00024444,120]
[408689689,1774123840999,-500.0,0.00024444,120]
[408689690,1774123841008,-500.0,0.00024444,120]
[408689692,1774123841019,-500.0,0.00024444,120]
[408689695,1774123841028,-500.0,0.00024444,120]
[408689697,1774123841039,-500.0,0.00024444,120]
[408689699,1774123841048,-500.0,0.00024444,120]
[408689700,1774123841058,-500.0,0.00024444,120]
[408689703,1774123841067,-500.0,0.00024444,120]
[408689704,1774123841076,-500.0,0.00024444,120]
[408689707,1774123841087,-500.0,0.00024444,120]
[408689708,1774123841097,-500.0,0.00024444,120]
[408689711,1774123841107,-500.0,0.00024444,120]
[408689713,1774123841116,-500.0,0.00024444,120]
[408689715,1774123841125,-500.0,0.00024444,120]
[408689717,1774123841134,-500.0,0.00024444,120]
[408689719,1774123841143,-500.0,0.00024444,120]
[408689721,1774123841153,-500.0,0.00024444,120]
[408689722,1774123841163,-500.0,0.00024444,120]
[408689724,1774123841171,-500.0,0.00024444,120]
[408689726,1774123841180,-500.0,0.00024444,120]
[408689728,1774123841189,-500.0,0.00024444,120]
[408689730,1774123841198,-500.0,0.00024444,120]
[408689732,1774123841208,-500.0,0.00024444,120]
[408689734,1774123841217,-500.0,0.00024444,120]
[408689736,1774123841227,-500.0,0.00024444,120]
[408689738,1774123841238,-500.0,0.00024444,120]
[408689740,1774123841248,-500.0,0.00024444,120]
[408689742,1774123841258,-500.0,0.00024444,120]
[408689744,1774123841267,-500.0,0.00024444,120]
[408689746,1774123841277,-500.0,0.00024444,120]
[408689748,1774123841287,-500.0,0.00024444,120]
[408689750,1774123841295,-500.0,0.00024444,120]
[408689752,1774123841305,-500.0,0.00024444,120]
[408689754,1774123841314,-500.0,0.00024444,120]
[408689756,1774123841323,-500.0,0.00024444,120]
[408689758,1774123841333,-500.0,0.00024444,120]
[408689760,1774123841343,-500.0,0.00024444,120]
[408689762,1774123841353,-500.0,0.00024444,120]
[408689763,1774123841361,-500.0,0.00024444,120]
[408689765,1774123841372,-500.0,0.00024444,120]
[408689767,1774123841382,-500.0,0.00024444,120]
[408689769,1774123841391,-500.0,0.00024444,120]
[408689771,1774123841401,-500.0,0.00024444,120]
[408689773,1774123841410,-500.0,0.00024444,120]
[408689775,1774123841419,-500.0,0.00024444,120]
[408689777,1774123841429,-399.74,0.00024444,120]
[408689779,1774123841438,-500.0,0.00024444,120]
[408689781,1774123841447,-500.0,0.00024444,120]
[408689783,1774123841456,-500.0,0.00024444,120]
[408689785,1774123841465,-500.0,0.00024444,120]
[408689787,1774123841475,-169.301551,0.00024444,2]
[408689789,1774123841484,-169.301551,0.00024444,2]
[408689791,1774123841494,-169.301551,0.00024444,2]
[408689793,1774123841504,-169.301551,0.00024444,2]
[408689795,1774123841512,-169.301551,0.00024444,2]
[408689797,1774123841522,-169.301551,0.00024444,2]
[408689799,1774123841532,-169.301551,0.00024444,2]
[408689801,1774123841541,-169.301551,0.00024444,2]
[408689803,1774123841551,-151.0,0.00024444,2]
[408689805,1774123841561,-151.0,0.00024444,2]
[408689807,1774123841572,-151.0,0.00024444,2]
[408689809,1774123841583,-151.0,0.00024444,2]
[408689811,1774123841592,-255.841421,0.00024444,2]
[408689813,1774123841601,-255.841421,0.00024444,2]
[408689815,1774123841610,-255.841421,0.00024444,2]
[408689817,1774123841623,-255.841421,0.00024444,2]
[408689819,1774123841632,-255.841421,0.00024444,2]
[408689821,1774123841640,-255.841421,0.00024444,2]
[408689823,1774123841649,-255.841421,0.00024444,2]
[408689825,1774123841659,-255.841421,0.00024444,2]
[408689827,1774123841668,-151.0,0.00024444,2]
[408689829,1774123841678,-151.0,0.00024444,2]
[408689831,1774123841687,-151.0,0.00024444,2]
[408689833,1774123841696,-151.0,0.00024444,2]
[408689835,1774123841706,-512.5734,0.00024444,2]
[408689837,1774123841715,-862.28603014,0.00024484,2]
[408689839,1774123841724,-894.19061326,0.00024539,2]
[408689841,1774123841733,-270.83333333,0.00024549,3]
[408689843,1774123841743,-25736.66878406,0.00024549,3]
[408689845,1774123841752,-927.27566595,0.00024594,2]
[408689847,1774123841761,-961.58486559,0.00024649,2]
[408689848,1774123841770,-995.54255805,0.00024681,2]
[408689850,1774123841779,-600.0,0.000248,2]
[408689852,1774123841789,-400.0,0.000248,6]
[408689854,1774123841798,-400.0,0.000248,3]
[408689855,1774123841807,-169.301551,0.000249,2]
[408689856,1774123841817,-169.301551,0.000249,2]
[408689857,1774123841827,-169.301551,0.000249,2]
[408689858,1774123841835,-169.301556,0.000249,2]
[408689859,1774123841845,-151.0,0.000249,2]
[408689860,1774123841855,-287.845212,0.000249,2]
[408689861,1774123841864,-255.841421,0.000249,2]
[408689862,1774123841873,-255.841421,0.000249,2]
[408689863,1774123841883,-255.841421,0.000249,2]
[408689864,1774123841892,-255.841421,0.000249,2]
[408689865,1774123841902,-125923.312255,0.000249,2]
[408689866,1774123841911,-291.14991491,0.00024984,2]
[408689867,1774123841920,-1034.96381941,0.00025,2]
[408689868,1774123841929,-5899.21,0.00025,30]
[408689869,1774123841938,-439.0,0.00025,2]
[408689870,1774123841948,-151.0,0.00025017,2]
[408689871,1774123841957,-151.0,0.00025017,2]
[408689872,1774123841966,-611.71,0.00025017,2]
[408689873,1774123841975,-611.71,0.00025017,2]
[408689874,1774123841985,-611.71,0.00025017,2]
[408689875,1774123841995,-611.71,0.00025017,2]
[408689876,1774123842004,-611.71,0.00025017,2]
[408689877,1774123842014,-611.71,0.00025017,2]
[408689878,1774123842024,-611.71,0.00025017,2]
[408689879,1774123842035,-611.71,0.00025017,2]
[408689880,1774123842045,-611.71,0.00025017,2]
[408689881,1774123842055,-611.71,0.00025017,2]
[408689882,1774123842065,-611.71,0.00025017,2]
[408689883,1774123842074,-611.71,0.00025017,2]
[408689884,1774123842083,-611.71,0.00025017,2]
[408689885,1774123842093,-611.71,0.00025017,2]
[408689886,1774123842102,-611.71,0.00025017,2]
[408689887,1774123842112,-611.71,0.00025017,2]
[408689888,1774123842123,-863.77,0.00025017,2]
[408689889,1774123842133,-41974.4374182,0.00025063,2]
[408689890,1774123842142,-4731.57541281,0.00025072,2]
[408689891,1774123842160,-37242.86200539,0.00025072,2]
[408689892,1774123842170,-500.0,0.00025073,2]
[408689893,1774123842180,-38000.0,0.00025073,7]
[408689894,1774123842189,-512.5734,0.0002508,4]
[408689895,1774123842199,-41974.4374182,0.00025081,2]
[408689896,1774123842208,-38000.0,0.00025082,7]
[408689897,1774123842218,-41974.4374182,0.0002509,2]
[408689898,1774123842227,-38000.0,0.00025091,7]
[408689899,1774123842237,-38000.0,0.000251,7]
[408689900,1774123842246,-400.0,0.000251,7]
[408689901,1774123842256,-201.480487,0.000251,2]
[408689902,1774123842265,-41974.4374182,0.00025107,2]
[408689903,1774123842276,-38000.0,0.00025108,7]
[408689904,1774123842285,-41974.4374182,0.00025116,2]
[408689905,1774123842295,-38000.0,0.00025117,7]
[408689906,1774123842304,-38000.0,0.00025126,7]
[408689907,1774123842313,-270.83333333,0.00025126,7]
[408689908,1774123842323,-270.83333333,0.00025126,7]
[408689909,1774123842332,-270.83333333,0.00025126,7]
[408689910,1774123842342,-4180.6353667,0.00025126,7]
[408689911,1774123842351,-13978.92558202,0.00025132,84]
[408689912,1774123842361,-503.92424211,0.00025138,2]
[408689913,1774123842370,-442.35478897,0.00025138,2]
[408689914,1774123842380,-796.23862014,0.00025138,2]
[408689915,1774123842390,-41974.4374182,0.00025145,2]
[408689916,1774123842399,-3160.8351804,0.00025155,2]
[408689917,1774123842409,-500.0,0.00025173,2]
[408689918,1774123842418,-500.0,0.00025173,2]
[408689919,1774123842428,-1034.96381941,0.000253,2]
[408689920,1774123842437,-907.0636358,0.00025408,2]
[408689921,1774123842447,-83948.8748364,0.00025434,2]
[408689922,1774123842457,-1597329.7867,0.00025444,2]
[408689923,1774123842467,-230.84082452,0.00025473,2]
[408689924,1774123842476,-500.0,0.00025473,2]
[408689925,1774123842485,-1034.96381941,0.000255,2]
[408689926,1774123842495,-500.0031,0.0002554,5]
[408689927,1774123842505,-1000.0,0.00025621,2]
[408689928,1774123842514,-973.57967527,0.00025721,2]
[408689929,1774123842524,-1000.0,0.00025721,2]
[408689930,1774123842533,-1000.0,0.00025776,10]
[408689931,1774123842543,-1000.0,0.00025776,10]
[408689932,1774123842553,-1000.0,0.00025776,10]
[408689933,1774123842563,-1034.96381941,0.000258,2]
[408689934,1774123842572,-10179.19684536,0.00026,30]
[408689935,1774123842582,-1034.96381941,0.00026,2]
[408689936,1774123842593,-1000.0,0.00026021,2]
[408689937,1774123842602,-500.0,0.00026027,2]
[408689938,1774123842611,-914.94102823,0.00026168,2]
[408689939,1774123842621,-160.0,0.0002625,5]
[408689940,1774123842631,-1500.0,0.00026268,2]
[408689941,1774123842640,-1034.96381941,0.000263,2]
[408689942,1774123842650,-800.0,0.00026302,2]
[408689943,1774123842660,-800.0,0.00026303,2]
[408689944,1774123842670,-800.0,0.00026313,2]
[408689945,1774123842679,-800.0,0.00026329,2]
[408689946,1774123842690,-800.0,0.00026331,2]
[408689948,1774123842867,-800.0,0.00026334,2]
[408689949,1774123842904,-800.0,0.00026345,2]
[408689950,1774123842914,-800.0,0.00026349,2]
[408689951,1774123842923,-800.0,0.00026355,2]
[408689952,1774123842941,-800.0,0.00026364,2]
[408689953,1774123842955,-475.0,0.00026367,120]
[408689954,1774123842965,-800.0,0.00026376,2]
[408689955,1774123842975,-800.0,0.00026397,2]
[408689956,1774123842986,-800.0,0.00026414,2]
[408689957,1774123842997,-800.0,0.0002642,2]
[408689958,1774123843008,-800.0,0.00026441,2]
[408689959,1774123843019,-800.0,0.00026465,2]
[408689960,1774123843029,-800.0,0.00026476,2]
[408689961,1774123843040,-800.0,0.00026488,2]
[408689962,1774123843050,-800.0,0.0002649,2]
[408689963,1774123843061,-1034.96381941,0.000265,2]
[408689964,1774123843072,-800.0,0.00026514,2]
[408689965,1774123843082,-800.0,0.00026526,2]
[408689966,1774123843092,-800.0,0.00026526,2]
[408689967,1774123843102,-800.0,0.00026536,2]
[408689968,1774123843112,-800.0,0.00026542,2]
[408689969,1774123843123,-800.0,0.00026545,2]
[408689970,1774123843134,-800.0,0.00026558,2]
[408689971,1774123843144,-800.0,0.0002656,2]
[408689972,1774123843154,-796.34758892,0.00026561,2]
[408689973,1774123843164,-800.0,0.00026561,2]
[408689974,1774123843175,-800.0,0.00026564,2]
[408689975,1774123843185,-1500.0,0.00026568,2]
[408689976,1774123843195,-1059.40307647,0.00026575,2]
[408689977,1774123843205,-57559.37,0.000266,6]
[408689978,1774123843215,-500.0,0.000267,10]
[408689979,1774123843225,-500.0,0.000267,10]
[408689980,1774123843234,-1034.96381941,0.000268,2]
[408689981,1774123843244,-2000.0,0.00026816,2]
[408689982,1774123843254,-150.0,0.00026834,2]
[408689983,1774123843263,-2500.0,0.000269,2]
[408689984,1774123843274,-183.0,0.00026954,2]
[408689985,1774123843286,-600.0,0.00027,14]
[408689986,1774123843297,-2007.00240887,0.00027,30]
[408689987,1774123843308,-1000.0,0.00027,8]
[408689988,1774123843320,-1591.06506,0.00027,120]
[408689989,1774123843330,-200.0,0.00027,120]
[408689990,1774123843340,-50023.0,0.00027,30]
[408689991,1774123843349,-1215.65827,0.00027,120]
[408689992,1774123843360,-1215.65827,0.00027,120]
[408689993,1774123843372,-1215.65827,0.00027,120]
[408689994,1774123843381,-1215.65827,0.00027,120]
[408689995,1774123843391,-1215.65827,0.00027,120]
[408689996,1774123843402,-1215.65827,0.00027,120]
[408689997,1774123843411,-1215.65827,0.00027,120]
[408689998,1774123843421,-1215.65827,0.00027,120]
[408689999,1774123843431,-1215.65833,0.00027,120]
[408690000,1774123843441,-200.0,0.00027,120]
[408690001,1774123843451,-200.0,0.00027,120]
[408690002,1774123843460,-200.0,0.00027,120]
[408690003,1774123843470,-200.0,0.00027,120]
[408690004,1774123843480,-200.0,0.00027,120]
[408690005,1774123843490,-200.0,0.00027,120]
[408690006,1774123843508,-391.06506,0.00027,120]
[408690007,1774123843525,-29793.44957758,0.00027,30]
[408690008,1774123843535,-73784.03692959,0.00027,20]
[408690009,1774123843545,-69836.20038202,0.00027,120]
[408690010,1774123843560,-15336.37544927,0.00027,120]
[408690011,1774123843710,-1734.53395381,9.821e-05,2]
[408690012,1774123843721,-380.183,9.821e-05,2]
[408690013,1774123843733,-2885.28304619,9.821e-05,2]
[408690014,1774123843742,-6452.43187999,0.00025444,10]
[408690016,1774123845908,-4743.75,0.00025063,10]
[408690017,1774123845918,-2218.36090932,0.00027,120]
[408690020,1774123865926,151.0,6e-05,120]
[408690022,1774123915324,151.0,6e-05,120]
[408690023,1774123955581,151.0,6e-05,120]
[408690024,1774124004467,151.0,6e-05,120]
[408690025,1774124044583,151.0,6e-05,120]
[408690026,1774124084002,151.0,6e-05,120]
[408690027,1774124114853,151.0,6e-05,120]
[408690028,1774124146233,151.0,6e-05,120]
[408690029,1774124184840,151.0,6e-05,120]
[408690030,1774124214488,151.0,6e-05,120]
[408690031,1774124248205,151.0,6e-05,120]
[408690032,1774124285405,151.0,6e-05,120]
[408690033,1774124325953,151.0,6e-05,120]
[408690034,1774124373866,151.0,6e-05,120]
[408690035,1774124403970,151.0,6e-05,120]
[408690036,1774124442277,151.0,6e-05,120]
[408690037,1774124475185,151.0,6e-05,120]
[408690038,1774124505299,151.0,6e-05,120]
[408690039,1774124544679,151.0,6e-05,120]
[408690040,1774124584943,151.0,6e-05,120]
[408690041,1774124615694,151.0,6e-05,120]
[408690042,1774124665757,151.0,6e-05,120]
[408690043,1774124714898,151.0,6e-05,120]
[408690044,1774124755916,151.0,6e-05,120]
[408690046,1774124792297,151.0,6e-05,120]
[408690053,1774124835792,151.0,6e-05,120]
[408690054,1774124874581,151.0,6e-05,120]
[408690056,1774124915941,151.0,6e-05,120]
[408690058,1774124964519,151.0,6e-05,120]
[408690060,1774125002463,151.0,6e-05,120]
[408690076,1774125031974,-1410.83091649,0.00012929,2]
[408690175,1774125034175,151.0,6e-05,120]
[408690206,1774125038101,-3589.16908351,0.00012929,2]
[408690208,1774125038111,-1200.0,0.0001306,2]
[408690210,1774125038121,-605.0,0.00013061,2]
[408690212,1774125038130,-200.76700921,0.00013326,2]
[408690213,1774125038139,-300.0,0.00013692,2]
[408690215,1774125038149,-300.0,0.00013692,2]
[408690217,1774125038162,-300.0,0.00013694,2]
[408690219,1774125038172,-300.0,0.00013694,2]
[408690221,1774125038181,-300.0,0.00013694,2]
[408690223,1774125038196,-300.0,0.00013694,2]
[408690225,1774125038206,-300.0,0.00013694,2]
[408690228,1774125038216,-300.0,0.00013694,2]
[408690230,1774125038228,-300.0,0.00013694,2]
[408690231,1774125038237,-300.0,0.00013694,2]
[408690234,1774125038247,-300.0,0.00013694,2]
[408690236,1774125038256,-300.0,0.00013694,2]
[408690237,1774125038265,-300.0,0.00013694,2]
[408690240,1774125038274,-300.0,0.00013694,2]
[408690241,1774125038283,-300.0,0.00013694,2]
[408690243,1774125038293,-300.0,0.00013694,2]
[408690245,1774125038302,-300.0,0.00013694,2]
[408690247,1774125038311,-1000.0,0.00013699,2]
[408690249,1774125038320,-600.0,0.00013967,2]
[408690251,1774125038329,-9848.0,0.00015,2]
[408690253,1774125038338,-126.85177856,0.00015,2]
[408690256,1774125038350,-1368.14822144,0.00015,2]
[408690258,1774125038359,-303.0,0.00015,2]
[408690260,1774125038368,-720.0,0.00015364,2]
[408690262,1774125038377,-864.0,0.000169,2]
[408690264,1774125038386,-1000.0,0.0001859,2]
[408690266,1774125038395,-1000.0,0.00020449,2]
[408690268,1774125038404,-244.0,0.00020449,2]
[408690270,1774125038413,-1000.0,0.00022494,10]
[408690272,1774125038422,-492.0,0.00022494,10]
[408690274,1774125038431,-291.14991491,0.00022537,2]
[408690275,1774125038440,-183.0,0.00022637,2]
[408690278,1774125038451,-270.83333333,0.00023,2]
[408690280,1774125038460,-658.86609478,0.00023873,2]
[408690282,1774125038469,-500.0,0.00024443,2]
[408690284,1774125038479,-500.0,0.00024443,2]
[408690285,1774125038491,-500.0,0.00024443,2]
[408690288,1774125038502,-500.0,0.00024443,2]
[408690290,1774125038511,-347.94554529,0.00024443,2]
[408690291,1774125038520,-500.0,0.00024443,2]
[408690293,1774125038529,-500.0,0.00024443,2]
[408690295,1774125038540,-500.0,0.00024443,2]
[408690298,1774125038550,-543.22665138,0.00024443,2]
[408690299,1774125038559,-157.23003341,0.00024443,2]
[408690301,1774125038569,-500.0,0.00024443,2]
[408690303,1774125038578,-500.0,0.00024443,2]
[408690305,1774125038587,-500.0,0.00024443,2]
[408690307,1774125038597,-500.0,0.00024443,2]
[408690309,1774125038606,-500.0,0.00024443,2]
[408690312,1774125038615,-500.0,0.00024443,2]
[408690313,1774125038625,-500.0,0.00024443,2]
[408690315,1774125038634,-500.0,0.00024443,2]